[Event "EYCC Open-U16 2019"]
[Site "Bratislava"]
[Date "2019.08.04"]
[Round "3.26"]
[White "Placer, Sebastian"]
[Black "Dudin, Gleb"]
[Result "0-1"]
[ECO "A41"]
[WhiteElo "2040"]
[BlackElo "2283"]
[Annotator "NA"]
[PlyCount "90"]
[EventDate "2019.08.02"]
[EventType "swiss"]
[EventCountry "SVK"]
[SourceTitle "playchess.com"]
[Source "ChessBase"]
[SourceQuality "1"]
[TimeControl "40/5400+30:1800+30"]

1. d4 {[%emt 0:00:00]} g6 {[%emt 0:00:00]} 2. c4 {[%emt 0:00:29]} Bg7 {[%emt 0:00:00]} 3. Nc3 {[%emt 0:00:30]} d6 {[%emt 0:00:00]} 4. Nf3 {[%emt 0:00:54]} Bg4 {[%emt 0:04:02]} 5. e3 {[%emt 0:01:27]} c5 {[%emt 0:06:18]} 6. dxc5 {[%emt 0:09:25]} Bxc3+ {[%emt 0:04:51]} 7. bxc3 {[%emt 0:00:05]} dxc5 {[%emt 0:00:17]} 8. Qxd8+ {[%emt 0:01:28]} Kxd8 {[%emt 0:01:33]} 9. Ne5 {[%emt 0:01:21]} Be6 {[%emt 0:01:29]} 10. g3 {[%emt 0:02:09]} Nd7 {[%emt 0:05:58]} 11. Nxd7 {[%emt 0:01:18]} Bxd7 {[%emt 0:00:07]} 12. Bg2 {[%emt 0:01:47]} Kc7 {[%emt 0:00:09]} 13. Ba3 {[%emt 0:02:57]} Bc6 {[%emt 0:00:22]} 14. Bd5 {[%emt 0:03:42]} b6 {[%emt 0:01:39]} 15. O-O-O {[%emt 0:01:48]} Nf6 {[%emt 0:02:44]} 16. Rd2 {[%emt 0:19:47]} Rad8 {[%emt 0:01:59]} 17. Rhd1 {[%emt 0:11:12]} e6 {[%emt 0:02:02]} 18. Bxc6 {[%emt 0:00:56]} Rxd2 {[%emt 0:00:07]} 19. Rxd2 {[%emt 0:00:38]} Kxc6 {[%emt 0:00:04]} 20. f3 {[%emt 0:01:55]} Nd7 {[%emt 0:00:18]} 21. f4 {[%emt 0:09:05]} Nf6 {[%emt 0:00:09]} 22. Kc2 {[%emt 0:01:49]} Ne4 {[%emt 0:00:08]} 23. Re2 {[%emt 0:01:22]} f5 {[%emt 0:04:30]} 24. Bc1 {[%emt 0:02:30]} h6 {[%emt 0:01:26]} 25. Bd2 {[%emt 0:02:39]} g5 {[%emt 0:01:20]} 26. Be1 {[%emt 0:02:04]} g4 {[%emt 0:00:08]} 27. h3 {[%emt 0:07:40]} h5 {[%emt 0:01:34]} 28. Rg2 {[%emt 0:04:37]} Nd6 {[%emt 0:14:24]} 29. Kd3 {[%emt 0:00:23]} e5 {[%emt 0:00:51]} 30. fxe5 {[%emt 0:01:17]} Nf7 {[%emt 0:00:05]} 31. hxg4 {[%emt 0:01:24]} Nxe5+ {[%emt 0:00:22]} 32. Kc2 {[%emt 0:00:51]} hxg4 {[%emt 0:00:17]} 33. Kb3 {[%emt 0:00:35]} Nf3 {[%emt 0:01:32]} 34. Re2 {[%emt 0:00:43]} Rh1 {[%emt 0:00:19]} 35. Bf2 {[%emt 0:00:29]} Rh2 {[%emt 0:01:22]} 36. Kc2 {[%emt 0:02:15]} Ng5 {[%emt 0:00:25]} 37. Kd3 {[%emt 0:01:06]} Ne4 {[%emt 0:00:31]} 38. Be1 {[%emt 0:00:06]} Rh1 {[%emt 0:00:33]} 39. Bf2 {[%emt 0:00:47]} Rc1 {[%emt 0:02:01]} 40. Be1 {[%emt 0:00:00]} Kd6 {[%emt 0:00:00]} 41. Bd2 {[%emt 0:00:53]} Rg1 {[%emt 0:01:34]} 42. Rh2 {[%emt 0:07:11]} Rxg3 {[%emt 0:03:45]} 43. Rh6+ {[%emt 0:00:09]} Ke5 {[%emt 0:00:18]} 44. Rh8 {[%emt 0:00:08]} Rg1 {[%emt 0:02:10]} 45. Re8+ {[%emt 0:00:50]} Kf6 {[%emt 0:00:15]} 0-1

[Event "EYCC Open-U16 2019"]
[Site "Bratislava"]
[Date "2019.08.04"]
[Round "3.27"]
[White "Akulov, Lev"]
[Black "Alonso Garcia, Aaron"]
[Result "0-1"]
[ECO "B06"]
[WhiteElo "2068"]
[BlackElo "2248"]
[Annotator "NA"]
[PlyCount "144"]
[EventDate "2019.08.02"]
[EventType "swiss"]
[EventCountry "SVK"]
[SourceTitle "playchess.com"]
[Source "ChessBase"]
[SourceQuality "1"]
[TimeControl "40/5400+30:1800+30"]

1. e4 {[%emt 0:00:00]} g6 {[%emt 0:00:10]} 2. d4 {[%emt 0:00:00]} Bg7 {[%emt 0:00:26]} 3. Bc4 {[%emt 0:01:29]} d6 {[%emt 0:02:42]} 4. Nf3 {[%emt 0:01:12]} Nf6 {[%emt 0:00:17]} 5. Qe2 {[%emt 0:00:26]} O-O {[%emt 0:00:11]} 6. O-O {[%emt 0:00:44]} Bg4 {[%emt 0:04:16]} 7. h3 {[%emt 0:02:38]} Bxf3 {[%emt 0:00:13]} 8. Qxf3 {[%emt 0:00:04]} Nc6 {[%emt 0:00:58]} 9. c3 {[%emt 0:00:44]} e5 {[%emt 0:01:08]} 10. Rd1 {[%emt 0:02:30]} Qe8 {[%emt 0:20:32]} 11. d5 {[%emt 0:03:14]} Ne7 {[%emt 0:00:27]} 12. a4 {[%emt 0:07:42]} Nd7 {[%emt 0:02:24]} 13. Nd2 {[%emt 0:04:39]} f5 {[%emt 0:00:48]} 14. Qe2 {[%emt 0:00:37]} Nf6 {[%emt 0:01:34]} 15. Bd3 {[%emt 0:17:55]} f4 {[%emt 0:09:37]} 16. b4 {[%emt 0:03:19]} g5 {[%emt 0:08:22]} 17. g4 {[%emt 0:04:54]} fxg3 {[%emt 0:02:58]} 18. fxg3 {[%emt 0:00:09]} g4 {[%emt 0:05:17]} 19. h4 {[%emt 0:06:56]} Qd7 {[%emt 0:01:23]} 20. Qg2 {[%emt 0:14:39]} Nh5 {[%emt 0:01:44]} 21. Nf1 {[%emt 0:03:41]} Rf3 {[%emt 0:08:45]} 22. c4 {[%emt 0:11:10]} Raf8 {[%emt 0:01:31]} 23. Ra2 {[%emt 0:00:38]} Ng6 {[%emt 0:02:37]} 24. Be2 {[%emt 0:03:27]} R8f7 {[%emt 0:12:58]} 25. b5 {[%emt 0:04:32]} Bf8 {[%emt 0:03:54]} 26. Ra3 {[%emt 0:01:44]} Rxa3 {[%emt 0:03:26]} 27. Bxa3 {[%emt 0:00:01]} Bh6 {[%emt 0:00:01]} 28. Bc1 {[%emt 0:00:49]} Bxc1 {[%emt 0:01:33]} 29. Rxc1 {[%emt 0:00:01]} Ng7 {[%emt 0:02:49]} 30. Ne3 {[%emt 0:00:56]} h5 {[%emt 0:00:03]} 31. Rf1 {[%emt 0:00:33]} Nf8 {[%emt 0:01:29]} 32. Rxf7 {[%emt 0:00:57]} Qxf7 {[%emt 0:00:11]} 33. Qf2 {[%emt 0:00:57]} Qg6 {[%emt 0:00:20]} 34. Bd3 {[%emt 0:01:05]} Nd7 {[%emt 0:00:08]} 35. Bc2 {[%emt 0:01:07]} Nc5 {[%emt 0:00:04]} 36. Nd1 {[%emt 0:00:55]} Ne8 {[%emt 0:01:01]} 37. Nc3 {[%emt 0:00:49]} Qh6 {[%emt 0:00:42]} 38. Qe1 {[%emt 0:00:36]} Nf6 {[%emt 0:00:57]} 39. Kf2 {[%emt 0:00:43]} Nfd7 {[%emt 0:00:48]} 40. Kg2 {[%emt 0:00:00]} Nb6 {[%emt 0:00:00]} 41. Qe2 {[%emt 0:05:30]} Qc1 {[%emt 0:00:57]} 42. Na2 {[%emt 0:00:38]} Qb2 {[%emt 0:04:10]} 43. Qd2 {[%emt 0:04:12]} Kf7 {[%emt 0:03:52]} 44. Nb4 {[%emt 0:00:52]} Ncd7 {[%emt 0:01:55]} 45. Qf2+ {[%emt 0:03:38]} Nf6 {[%emt 0:01:04]} 46. Nd3 {[%emt 0:00:14]} Qc3 {[%emt 0:01:32]} 47. c5 {[%emt 0:01:17]} Nc4 {[%emt 0:00:09]} 48. cxd6 {[%emt 0:07:55]} cxd6 {[%emt 0:00:29]} 49. Ne1 {[%emt 0:01:29]} Kg7 {[%emt 0:04:47]} 50. Bd3 {[%emt 0:00:40]} Nb2 {[%emt 0:04:24]} 51. Bc2 {[%emt 0:03:19]} b6 {[%emt 0:00:26]} 52. Qe2 {[%emt 0:01:47]} Nc4 {[%emt 0:01:01]} 53. Bd3 {[%emt 0:02:58]} Nd2 {[%emt 0:00:17]} 54. Nc2 {[%emt 0:00:42]} Nf3 {[%emt 0:00:45]} 55. Kf2 {[%emt 0:01:43]} Nd7 {[%emt 0:01:06]} 56. Ne3 {[%emt 0:01:04]} Nc5 {[%emt 0:00:05]} 57. Nf5+ {[%emt 0:00:15]} Kf6 {[%emt 0:00:30]} 58. Bc2 {[%emt 0:00:05]} Qa1 {[%emt 0:00:54]} 59. Bd1 {[%emt 0:01:32]} Nxe4+ {[%emt 0:01:14]} 60. Qxe4 {[%emt 0:00:41]} Qxd1 {[%emt 0:00:01]} 61. Nxd6 {[%emt 0:00:20]} Qg1+ {[%emt 0:03:18]} 62. Ke2 {[%emt 0:00:01]} Qe1+ {[%emt 0:02:29]} 63. Kd3 {[%emt 0:00:02]} Qd1+ {[%emt 0:00:01]} 64. Kc3 {[%emt 0:00:17]} Qc1+ {[%emt 0:00:51]} 65. Kd3 {[%emt 0:00:41]} Qa3+ {[%emt 0:00:11]} 66. Ke2 {[%emt 0:00:55]} Qxd6 {[%emt 0:00:09]} 67. Qh7 {[%emt 0:00:57]} Qxd5 {[%emt 0:00:30]} 68. Qh8+ {[%emt 0:00:46]} Ke7 {[%emt 0:00:05]} 69. Qh7+ {[%emt 0:00:24]} Kd6 {[%emt 0:00:20]} 70. Qh6+ {[%emt 0:00:30]} Kc5 {[%emt 0:00:24]} 71. Qf8+ {[%emt 0:00:18]} Kd4 {[%emt 0:00:17]} 72. Qa3 {[%emt 0:00:35]} Qc4+ {[%emt 0:00:23]} 0-1

[Event "EYCC Open-U16 2019"]
[Site "Bratislava"]
[Date "2019.08.04"]
[Round "3.28"]
[White "Ognean, Mihnea-Ionut"]
[Black "Sismeiro, Miguel"]
[Result "1-0"]
[ECO "B47"]
[WhiteElo "2287"]
[BlackElo "2103"]
[Annotator "NA"]
[PlyCount "93"]
[EventDate "2019.08.02"]
[EventType "swiss"]
[EventCountry "SVK"]
[SourceTitle "playchess.com"]
[Source "ChessBase"]
[SourceQuality "1"]
[TimeControl "40/5400+30:1800+30"]

1. e4 {[%emt 0:00:00]} c5 {[%emt 0:00:00]} 2. Nf3 {[%emt 0:00:00]} e6 {[%emt 0:00:00]} 3. d4 {[%emt 0:00:00]} cxd4 {[%emt 0:00:00]} 4. Nxd4 {[%emt 0:00:00]} Nc6 {[%emt 0:00:00]} 5. Nc3 {[%emt 0:00:04]} Qc7 {[%emt 0:00:02]} 6. f4 {[%emt 0:00:17]} a6 {[%emt 0:00:05]} 7. Nxc6 {[%emt 0:00:29]} bxc6 {[%emt 0:00:14]} 8. Bd3 {[%emt 0:00:30]} d5 {[%emt 0:00:19]} 9. Qe2 {[%emt 0:03:22]} Nf6 {[%emt 0:01:33]} 10. O-O {[%emt 0:00:31]} Be7 {[%emt 0:04:56]} 11. Kh1 {[%emt 0:08:39]} Bb7 {[%emt 0:02:03]} 12. Bd2 {[%emt 0:01:55]} O-O {[%emt 0:11:24]} 13. Rae1 {[%emt 0:02:58]} c5 {[%emt 0:36:22]} 14. exd5 {[%emt 0:06:15]} Nxd5 {[%emt 0:03:42]} 15. f5 {[%emt 0:01:20]} Bh4 {[%emt 0:07:49]} 16. Nxd5 {[%emt 0:13:52]} exd5 {[%emt 0:02:32]} 17. f6 {[%emt 0:00:38]} g6 {[%emt 0:02:30]} 18. Qg4 {[%emt 0:22:06]} Bxe1 {[%emt 0:01:17]} 19. Qg5 {[%emt 0:13:58]} Bxd2 {[%emt 0:00:18]} 20. Qxd2 {[%emt 0:00:02]} Kh8 {[%emt 0:00:26]} 21. Qh6 {[%emt 0:00:04]} Rg8 {[%emt 0:02:00]} 22. Rf4 {[%emt 0:00:03]} Qxf4 {[%emt 0:03:42]} 23. Qxf4 {[%emt 0:00:04]} Rae8 {[%emt 0:02:22]} 24. Kg1 {[%emt 0:00:52]} c4 {[%emt 0:02:07]} 25. Bf1 {[%emt 0:00:10]} Bc8 {[%emt 0:01:06]} 26. b3 {[%emt 0:02:24]} cxb3 {[%emt 0:01:56]} 27. axb3 {[%emt 0:01:13]} Bf5 {[%emt 0:01:28]} 28. c3 {[%emt 0:07:40]} Re6 {[%emt 0:02:58]} 29. c4 {[%emt 0:00:20]} Re4 {[%emt 0:06:43]} 30. Qc7 {[%emt 0:01:16]} Be6 {[%emt 0:00:48]} 31. c5 {[%emt 0:00:48]} Rb4 {[%emt 0:01:34]} 32. Bxa6 {[%emt 0:04:42]} Rxb3 {[%emt 0:00:04]} 33. Qd6 {[%emt 0:03:37]} Rbb8 {[%emt 0:02:34]} 34. Bd3 {[%emt 0:02:16]} Rbd8 {[%emt 0:00:17]} 35. Qe5 {[%emt 0:00:20]} Rc8 {[%emt 0:00:23]} 36. Qd4 {[%emt 0:00:09]} Rc7 {[%emt 0:00:33]} 37. h4 {[%emt 0:00:36]} Rgc8 {[%emt 0:00:57]} 38. h5 {[%emt 0:00:44]} Kg8 {[%emt 0:00:04]} 39. Qf4 {[%emt 0:01:21]} Kh8 {[%emt 0:00:39]} 40. Qd4 {[%emt 0:00:00]} Kg8 {[%emt 0:00:00]} 41. Qe3 {[%emt 0:06:28]} Kh8 {[%emt 0:10:31]} 42. hxg6 {[%emt 0:00:05]} fxg6 {[%emt 0:00:02]} 43. Qxe6 {[%emt 0:00:06]} Rxc5 {[%emt 0:00:03]} 44. Ba6 {[%emt 0:06:00]} Rc1+ {[%emt 0:05:55]} 45. Kh2 {[%emt 0:00:05]} R1c6 {[%emt 0:00:06]} 46. Qe7 {[%emt 0:00:10]} R6c7 {[%emt 0:00:18]} 47. Bxc8 {[%emt 0:00:10]} 1-0

[Event "EYCC Open-U16 2019"]
[Site "Bratislava"]
[Date "2019.08.04"]
[Round "3.29"]
[White "Torngren, Gustav"]
[Black "Haring, Filip"]
[Result "0-1"]
[ECO "A30"]
[WhiteElo "2109"]
[BlackElo "2334"]
[Annotator "NA"]
[PlyCount "98"]
[EventDate "2019.08.02"]
[EventType "swiss"]
[EventCountry "SVK"]
[SourceTitle "playchess.com"]
[Source "ChessBase"]
[SourceQuality "1"]
[TimeControl "40/5400+30:1800+30"]

1. c4 {[%emt 0:00:00]} c5 {[%emt 0:00:00]} 2. g3 {[%emt 0:00:13]} Nf6 {[%emt 0:00:40]} 3. Bg2 {[%emt 0:00:22]} e6 {[%emt 0:01:12]} 4. Nf3 {[%emt 0:01:59]} Nc6 {[%emt 0:03:44]} 5. O-O {[%emt 0:07:11]} Be7 {[%emt 0:03:33]} 6. d4 {[%emt 0:03:11]} cxd4 {[%emt 0:00:04]} 7. Nxd4 {[%emt 0:00:10]} O-O {[%emt 0:00:06]} 8. Nc3 {[%emt 0:01:03]} a6 {[%emt 0:01:15]} 9. b3 {[%emt 0:05:27]} Qc7 {[%emt 0:02:41]} 10. Bb2 {[%emt 0:00:33]} d6 {[%emt 0:08:07]} 11. Rc1 {[%emt 0:04:14]} Nxd4 {[%emt 0:06:58]} 12. Qxd4 {[%emt 0:00:13]} e5 {[%emt 0:06:01]} 13. Qd2 {[%emt 0:03:25]} Bf5 {[%emt 0:06:48]} 14. Rfd1 {[%emt 0:01:25]} Rfd8 {[%emt 0:04:24]} 15. Nd5 {[%emt 0:21:49]} Nxd5 {[%emt 0:00:19]} 16. Bxd5 {[%emt 0:00:14]} Rab8 {[%emt 0:02:17]} 17. Bc3 {[%emt 0:00:11]} Qd7 {[%emt 0:01:04]} 18. a4 {[%emt 0:02:24]} b6 {[%emt 0:03:39]} 19. Bb4 {[%emt 0:05:15]} Bg6 {[%emt 0:03:26]} 20. Qa2 {[%emt 0:03:08]} Kh8 {[%emt 0:06:01]} 21. e3 {[%emt 0:10:35]} Qg4 {[%emt 0:05:18]} 22. f3 {[%emt 0:03:03]} Qd7 {[%emt 0:02:32]} 23. Qf2 {[%emt 0:02:36]} h6 {[%emt 0:07:22]} 24. Kg2 {[%emt 0:03:02]} f5 {[%emt 0:03:23]} 25. f4 {[%emt 0:07:05]} e4 {[%emt 0:02:29]} 26. Bc3 {[%emt 0:03:45]} Bh5 {[%emt 0:01:41]} 27. Qb2 {[%emt 0:02:33]} Bf8 {[%emt 0:00:59]} 28. Rd2 {[%emt 0:00:34]} Kh7 {[%emt 0:01:13]} 29. Qa3 {[%emt 0:01:58]} Qe8 {[%emt 0:01:48]} 30. b4 {[%emt 0:01:12]} Bf3+ {[%emt 0:01:46]} 31. Kg1 {[%emt 0:00:10]} Qg6 {[%emt 0:01:48]} 32. Ra1 {[%emt 0:01:16]} Qg4 {[%emt 0:04:05]} 33. Qc1 {[%emt 0:02:15]} Be7 {[%emt 0:03:56]} 34. Qf1 {[%emt 0:03:04]} h5 {[%emt 0:00:41]} 35. Rf2 {[%emt 0:00:59]} h4 {[%emt 0:03:11]} 36. Rxf3 {[%emt 0:00:04]} exf3 {[%emt 0:01:52]} 37. Bxf3 {[%emt 0:00:16]} Qg6 {[%emt 0:00:04]} 38. Kf2 {[%emt 0:01:12]} Bf6 {[%emt 0:00:28]} 39. Qd3 {[%emt 0:00:53]} Rbc8 {[%emt 0:01:15]} 40. Rc1 {[%emt 0:00:00]} Bxc3 {[%emt 0:00:00]} 41. Rxc3 {[%emt 0:05:18]} Qf6 {[%emt 0:06:56]} 42. Rc2 {[%emt 0:07:18]} g6 {[%emt 0:01:57]} 43. Bb7 {[%emt 0:01:03]} Rc7 {[%emt 0:01:29]} 44. Bxa6 {[%emt 0:02:55]} Qa1 {[%emt 0:03:59]} 45. Kg2 {[%emt 0:02:56]} Qxa4 {[%emt 0:03:50]} 46. Bb5 {[%emt 0:01:22]} Qa8+ {[%emt 0:05:57]} 47. Kh3 {[%emt 0:00:51]} Qf3 {[%emt 0:01:31]} 48. Ra2 {[%emt 0:01:43]} hxg3 {[%emt 0:02:15]} 49. hxg3 {[%emt 0:00:06]} Rh8 {[%emt 0:00:36]} 0-1

[Event "EYCC Open-U16 2019"]
[Site "Bratislava"]
[Date "2019.08.04"]
[Round "3.30"]
[White "Lomandong, Marc-Antoine"]
[Black "Peyrer, Konstantin"]
[Result "0-1"]
[ECO "A46"]
[WhiteElo "2073"]
[BlackElo "2305"]
[Annotator "NA"]
[PlyCount "100"]
[EventDate "2019.08.02"]
[EventType "swiss"]
[EventCountry "SVK"]
[SourceTitle "playchess.com"]
[Source "ChessBase"]
[SourceQuality "1"]
[TimeControl "40/5400+30:1800+30"]

1. d4 {[%emt 0:00:00]} Nf6 {[%emt 0:00:00]} 2. Nf3 {[%emt 0:00:00]} e6 {[%emt 0:00:00]} 3. e3 {[%emt 0:00:00]} b6 {[%emt 0:00:00]} 4. Bd3 {[%emt 0:00:09]} Bb7 {[%emt 0:00:00]} 5. Nbd2 {[%emt 0:01:33]} c5 {[%emt 0:00:00]} 6. b3 {[%emt 0:00:04]} Be7 {[%emt 0:00:00]} 7. Bb2 {[%emt 0:00:04]} O-O {[%emt 0:00:05]} 8. O-O {[%emt 0:00:16]} cxd4 {[%emt 0:00:04]} 9. exd4 {[%emt 0:00:23]} d6 {[%emt 0:00:05]} 10. c4 {[%emt 0:03:16]} Nbd7 {[%emt 0:00:07]} 11. Re1 {[%emt 0:07:35]} Rc8 {[%emt 0:03:07]} 12. Rc1 {[%emt 0:02:50]} Rc7 {[%emt 0:01:51]} 13. Bb1 {[%emt 0:10:02]} Re8 {[%emt 0:04:03]} 14. Rc3 {[%emt 0:10:11]} Nf8 {[%emt 0:03:39]} 15. Ng5 {[%emt 0:12:40]} h6 {[%emt 0:02:27]} 16. Nge4 {[%emt 0:04:05]} d5 {[%emt 0:07:27]} 17. Nxf6+ {[%emt 0:06:34]} Bxf6 {[%emt 0:00:14]} 18. Rg3 {[%emt 0:01:24]} Bh4 {[%emt 0:07:57]} 19. Rh3 {[%emt 0:04:33]} Bg5 {[%emt 0:06:04]} 20. Nf3 {[%emt 0:08:55]} Bf6 {[%emt 0:01:15]} 21. Qd3 {[%emt 0:04:46]} dxc4 {[%emt 0:04:44]} 22. bxc4 {[%emt 0:00:01]} Ba6 {[%emt 0:03:02]} 23. Nd2 {[%emt 0:03:24]} Rd7 {[%emt 0:01:27]} 24. Re4 {[%emt 0:04:25]} e5 {[%emt 0:03:38]} 25. d5 {[%emt 0:02:10]} b5 {[%emt 0:00:51]} 26. Qg3 {[%emt 0:06:06]} Ng6 {[%emt 0:04:40]} 27. Re1 {[%emt 0:05:02]} Nf4 {[%emt 0:06:37]} 28. Rxh6 {[%emt 0:00:57]} g6 {[%emt 0:00:10]} 29. Qxf4 {[%emt 0:01:48]} Bg5 {[%emt 0:00:24]} 30. Bxe5 {[%emt 0:00:46]} Rxe5 {[%emt 0:00:23]} 31. Qxe5 {[%emt 0:00:48]} Bxh6 {[%emt 0:00:07]} 32. Qe8+ {[%emt 0:00:39]} Qxe8 {[%emt 0:00:14]} 33. Rxe8+ {[%emt 0:00:01]} Kg7 {[%emt 0:00:09]} 34. Ne4 {[%emt 0:00:59]} bxc4 {[%emt 0:00:10]} 35. d6 {[%emt 0:00:30]} f5 {[%emt 0:02:16]} 36. Re7+ {[%emt 0:00:31]} Rxe7 {[%emt 0:00:22]} 37. dxe7 {[%emt 0:00:00]} Kf7 {[%emt 0:00:09]} 38. Nc5 {[%emt 0:00:36]} Bc8 {[%emt 0:00:06]} 39. e8=Q+ {[%emt 0:00:52]} Kxe8 {[%emt 0:00:06]} 40. Kf1 {[%emt 0:00:00]} Ke7 {[%emt 0:00:00]} 41. g4 {[%emt 0:10:24]} Kd6 {[%emt 0:02:48]} 42. Na4 {[%emt 0:00:05]} Bd7 {[%emt 0:00:19]} 43. Nc3 {[%emt 0:01:16]} Ke5 {[%emt 0:01:09]} 44. Ke1 {[%emt 0:05:22]} Bc6 {[%emt 0:01:50]} 45. h4 {[%emt 0:00:41]} Bf3 {[%emt 0:00:36]} 46. Nb5 {[%emt 0:01:01]} Bxg4 {[%emt 0:01:30]} 47. Nxa7 {[%emt 0:00:09]} Bf3 {[%emt 0:02:08]} 48. Nb5 {[%emt 0:00:42]} Bf8 {[%emt 0:00:16]} 49. Kd2 {[%emt 0:00:25]} Bc5 {[%emt 0:00:33]} 50. a4 {[%emt 0:00:33]} Bxf2 {[%emt 0:00:38]} 0-1

[Event "EYCC Open-U16 2019"]
[Site "Bratislava"]
[Date "2019.08.04"]
[Round "3.31"]
[White "Carlsson, Ludvig"]
[Black "Fojt, Petr"]
[Result "1/2-1/2"]
[ECO "A04"]
[WhiteElo "2218"]
[BlackElo "2140"]
[Annotator "NA"]
[PlyCount "152"]
[EventDate "2019.08.02"]
[EventType "swiss"]
[EventCountry "SVK"]
[SourceTitle "playchess.com"]
[Source "ChessBase"]
[SourceQuality "1"]
[TimeControl "40/5400+30:1800+30"]

1. Nf3 {[%emt 0:00:00]} c5 {[%emt 0:00:41]} 2. c4 {[%emt 0:00:09]} Nf6 {[%emt 0:00:12]} 3. g3 {[%emt 0:00:12]} Nc6 {[%emt 0:01:05]} 4. Bg2 {[%emt 0:00:35]} d5 {[%emt 0:01:20]} 5. cxd5 {[%emt 0:00:15]} Nxd5 {[%emt 0:00:12]} 6. d4 {[%emt 0:00:09]} e6 {[%emt 0:00:25]} 7. O-O {[%emt 0:02:13]} Be7 {[%emt 0:00:47]} 8. dxc5 {[%emt 0:19:08]} Bxc5 {[%emt 0:01:02]} 9. Qc2 {[%emt 0:00:35]} Qe7 {[%emt 0:05:28]} 10. Nc3 {[%emt 0:14:31]} O-O {[%emt 0:09:52]} 11. Nxd5 {[%emt 0:03:26]} exd5 {[%emt 0:00:05]} 12. Rd1 {[%emt 0:00:23]} Nb4 {[%emt 0:12:25]} 13. Qd2 {[%emt 0:00:10]} Bf5 {[%emt 0:10:01]} 14. a3 {[%emt 0:02:07]} Nc2 {[%emt 0:02:43]} 15. Ra2 {[%emt 0:00:09]} Rac8 {[%emt 0:10:45]} 16. b4 {[%emt 0:21:45]} Bb6 {[%emt 0:03:00]} 17. Kf1 {[%emt 0:08:56]} Rfe8 {[%emt 0:08:42]} 18. Bb2 {[%emt 0:01:15]} Nxb4 {[%emt 0:06:39]} 19. axb4 {[%emt 0:02:31]} Rc2 {[%emt 0:01:46]} 20. Bd4 {[%emt 0:04:25]} Rxd2 {[%emt 0:01:05]} 21. Raxd2 {[%emt 0:00:11]} Qxb4 {[%emt 0:03:52]} 22. Bxb6 {[%emt 0:03:59]} Qxb6 {[%emt 0:00:09]} 23. Rxd5 {[%emt 0:00:07]} Be4 {[%emt 0:02:01]} 24. Rd6 {[%emt 0:00:25]} Qb3 {[%emt 0:03:55]} 25. R1d4 {[%emt 0:02:32]} Bc6 {[%emt 0:02:33]} 26. Rd3 {[%emt 0:03:32]} Qb1+ {[%emt 0:00:49]} 27. Rd1 {[%emt 0:00:07]} Qc2 {[%emt 0:00:19]} 28. R1d2 {[%emt 0:00:59]} Qc1+ {[%emt 0:00:42]} 29. Rd1 {[%emt 0:00:07]} Qc4 {[%emt 0:00:14]} 30. R6d2 {[%emt 0:01:30]} g6 {[%emt 0:01:38]} 31. h4 {[%emt 0:00:33]} a5 {[%emt 0:01:31]} 32. Kg1 {[%emt 0:02:50]} Rxe2 {[%emt 0:04:47]} 33. Rd8+ {[%emt 0:00:13]} Kg7 {[%emt 0:00:10]} 34. h5 {[%emt 0:01:47]} Qc5 {[%emt 0:02:51]} 35. Nd4 {[%emt 0:00:27]} Bxg2 {[%emt 0:01:23]} 36. Kxg2 {[%emt 0:00:44]} Re5 {[%emt 0:00:49]} 37. Rd7 {[%emt 0:00:09]} Qb4 {[%emt 0:01:01]} 38. h6+ {[%emt 0:00:24]} Kf8 {[%emt 0:01:04]} 39. Rc1 {[%emt 0:01:06]} Re7 {[%emt 0:00:50]} 40. Rc8+ {[%emt 0:00:00]} Re8 {[%emt 0:00:00]} 41. Rcc7 {[%emt 0:00:35]} Re7 {[%emt 0:02:59]} 42. Rxe7 {[%emt 0:02:46]} Qxe7 {[%emt 0:00:04]} 43. Rc8+ {[%emt 0:00:06]} Qe8 {[%emt 0:00:14]} 44. Rxe8+ {[%emt 0:00:05]} Kxe8 {[%emt 0:00:03]} 45. Kf3 {[%emt 0:00:09]} Kd7 {[%emt 0:00:31]} 46. Ke4 {[%emt 0:00:21]} Kd6 {[%emt 0:00:27]} 47. Nf3 {[%emt 0:00:07]} f6 {[%emt 0:10:55]} 48. Nh4 {[%emt 0:00:40]} g5 {[%emt 0:04:34]} 49. Ng6 {[%emt 0:04:46]} Ke6 {[%emt 0:00:21]} 50. Nf8+ {[%emt 0:00:07]} Kf7 {[%emt 0:00:02]} 51. Nxh7 {[%emt 0:00:08]} Kg6 {[%emt 0:00:08]} 52. Nf8+ {[%emt 0:00:06]} Kxh6 {[%emt 0:00:05]} 53. g4 {[%emt 0:00:45]} b5 {[%emt 0:03:29]} 54. Nd7 {[%emt 0:02:52]} Kg6 {[%emt 0:01:28]} 55. Nc5 {[%emt 0:00:10]} Kf7 {[%emt 0:01:00]} 56. Kd5 {[%emt 0:00:19]} Ke7 {[%emt 0:03:05]} 57. Kc6 {[%emt 0:00:05]} f5 {[%emt 0:00:22]} 58. f3 {[%emt 0:01:15]} fxg4 {[%emt 0:00:30]} 59. fxg4 {[%emt 0:00:06]} Kf6 {[%emt 0:00:08]} 60. Kd6 {[%emt 0:00:38]} Kf7 {[%emt 0:01:49]} 61. Ke5 {[%emt 0:01:32]} Ke7 {[%emt 0:00:34]} 62. Kd5 {[%emt 0:05:41]} a4 {[%emt 0:02:54]} 63. Nd3 {[%emt 0:00:33]} Kd7 {[%emt 0:01:01]} 64. Nc5+ {[%emt 0:08:35]} Kc7 {[%emt 0:03:53]} 65. Ne6+ {[%emt 0:00:06]} Kb6 {[%emt 0:00:31]} 66. Kd4 {[%emt 0:00:19]} Ka5 {[%emt 0:00:31]} 67. Kc3 {[%emt 0:01:09]} b4+ {[%emt 0:00:31]} 68. Kc4 {[%emt 0:08:34]} b3 {[%emt 0:00:57]} 69. Kc3 {[%emt 0:00:43]} Kb5 {[%emt 0:00:25]} 70. Nxg5 {[%emt 0:00:52]} Kc5 {[%emt 0:00:34]} 71. Nh3 {[%emt 0:01:14]} Kd5 {[%emt 0:01:05]} 72. Nf2 {[%emt 0:00:09]} Ke5 {[%emt 0:00:36]} 73. Nd3+ {[%emt 0:00:15]} Kf6 {[%emt 0:00:13]} 74. Nf2 {[%emt 0:01:13]} Kg5 {[%emt 0:00:16]} 75. Kb2 {[%emt 0:00:09]} Kf4 {[%emt 0:00:15]} 76. Ka3 {[%emt 0:00:20]} Kg5 {[%emt 0:00:10]} 1/2-1/2

[Event "EYCC Open-U16 2019"]
[Site "Bratislava"]
[Date "2019.08.04"]
[Round "3.32"]
[White "Palczert, Botond"]
[Black "Briem, Stephan"]
[Result "0-1"]
[ECO "E46"]
[WhiteElo "2022"]
[BlackElo "2223"]
[Annotator "NA"]
[PlyCount "60"]
[EventDate "2019.08.02"]
[EventType "swiss"]
[EventCountry "SVK"]
[SourceTitle "playchess.com"]
[Source "ChessBase"]
[SourceQuality "1"]
[TimeControl "40/5400+30:1800+30"]

1. d4 {[%emt 0:00:00]} Nf6 {[%emt 0:00:00]} 2. c4 {[%emt 0:00:00]} e6 {[%emt 0:00:00]} 3. Nc3 {[%emt 0:00:00]} Bb4 {[%emt 0:00:37]} 4. e3 {[%emt 0:00:18]} O-O {[%emt 0:00:40]} 5. Bd2 {[%emt 0:00:13]} b6 {[%emt 0:11:35]} 6. Nf3 {[%emt 0:01:22]} Bb7 {[%emt 0:00:51]} 7. Bd3 {[%emt 0:00:31]} d6 {[%emt 0:05:37]} 8. O-O {[%emt 0:01:02]} Nbd7 {[%emt 0:01:12]} 9. Rc1 {[%emt 0:04:55]} Qe7 {[%emt 0:08:18]} 10. Bb1 {[%emt 0:08:28]} Bxc3 {[%emt 0:05:17]} 11. Bxc3 {[%emt 0:01:17]} Ne4 {[%emt 0:00:12]} 12. Be1 {[%emt 0:03:07]} f5 {[%emt 0:02:24]} 13. Nd2 {[%emt 0:04:36]} Nxd2 {[%emt 0:02:10]} 14. Qxd2 {[%emt 0:01:11]} e5 {[%emt 0:01:16]} 15. f3 {[%emt 0:07:58]} Rf7 {[%emt 0:10:44]} 16. Bg3 {[%emt 0:12:13]} Re8 {[%emt 0:09:34]} 17. Rce1 {[%emt 0:04:25]} Qf6 {[%emt 0:07:48]} 18. Bf2 {[%emt 0:09:06]} g5 {[%emt 0:03:26]} 19. f4 {[%emt 0:09:37]} Qg6 {[%emt 0:06:25]} 20. Bg3 {[%emt 0:15:21]} h5 {[%emt 0:08:41]} 21. fxg5 {[%emt 0:00:35]} Qxg5 {[%emt 0:01:16]} 22. Qf2 {[%emt 0:00:24]} Ref8 {[%emt 0:01:03]} 23. Bh4 {[%emt 0:06:48]} Qg4 {[%emt 0:01:50]} 24. d5 {[%emt 0:05:52]} f4 {[%emt 0:07:42]} 25. h3 {[%emt 0:01:03]} Qg7 {[%emt 0:00:29]} 26. Qc2 {[%emt 0:01:11]} Bc8 {[%emt 0:02:19]} 27. Kh2 {[%emt 0:01:17]} Nc5 {[%emt 0:00:39]} 28. b4 {[%emt 0:00:39]} Nd7 {[%emt 0:01:12]} 29. Qg6 {[%emt 0:00:24]} Nf6 {[%emt 0:00:40]} 30. Bxf6 {[%emt 0:00:21]} Rxf6 {[%emt 0:00:07]} 0-1